bitfinex/quotes_SOLUSD_20250731
["timestamp","ask_amount","ask_price","bid_price","bid_amount"]
[1753963641689,38.72,180.63,180.62,0.71000001]
[1753963641868,5.53566958,180.65,180.62,5.66011235]
[1753963642071,38.72,180.64,180.63,0.68]
[1753963642271,38.72,180.64,180.63,5.63011234]
[1753963642654,38.72,180.64,180.63,0.68]
[1753963642850,44.25587245,180.64,180.62,1e-08]
[1753963643065,44.25587245,180.64,180.62,0.68000001]
[1753963643361,49.20598479,180.64,180.62,1e-08]
[1753963646484,49.20598479,180.64,180.62,0.68000001]
[1753963646957,44.25587245,180.64,180.62,0.68000001]
[1753963648195,49.20598479,180.64,180.62,0.68000001]
[1753963648497,49.20598479,180.64,180.62,1e-08]
[1753963648969,49.20598479,180.64,180.62,0.68000001]
[1753963650687,49.20598479,180.64,180.62,1e-08]
[1753963650978,44.25587245,180.64,180.62,0.68000001]
[1753963651189,44.25587245,180.64,180.63,0.68]
[1753963651887,5.53464688,180.68,180.63,5.63011234]
[1753963652090,38.7,180.67,180.66,4.95011234]
[1753963652403,0.03,180.66,180.64,1.5933]
[1753963652897,0.03,180.66,180.65,0.68]
[1753963653101,0.03,180.66,180.65,17.46468397]
[1753963653460,0.03,180.66,180.65,22.41479631]
[1753963655069,0.03,180.66,180.65,27.95036232]
[1753963655391,0.03,180.66,180.65,22.41479631]
[1753963657279,0.03,180.66,180.65,27.95036232]
[1753963657879,0.03,180.66,180.65,115.36036232]
[1753963660982,0.03,180.66,180.65,109.82479631]
[1753963661190,0.03,180.66,180.65,109.14479631]
[1753963661774,0.03,180.66,180.65,104.19468397]
[1753963661993,0.03,180.66,180.65,21.73479631]
[1753963663875,0.03,180.66,180.65,22.41479631]
[1753963665096,0.03,180.66,180.65,21.73479631]
[1753963666599,0.03,180.66,180.65,22.41479631]
[1753963667910,0.03,180.66,180.65,27.95036232]
[1753963668587,0.03,180.66,180.65,22.41479631]
[1753963670406,0.03,180.66,180.65,27.95036232]
[1753963671004,0.03,180.66,180.65,115.36036232]
[1753963671489,0.03,180.66,180.65,109.82479631]
[1753963674495,0.03,180.66,180.65,115.36036232]
[1753963675940,0.03,180.66,180.65,110.41024998]
[1753963676096,0.03,180.66,180.65,115.36036232]
[1753963676794,0.03,180.66,180.65,109.73024998]
[1753963677000,0.03,180.66,180.65,104.87468397]
[1753963677204,0.03,180.66,180.65,109.82479631]
[1753963678799,0.03,180.66,180.65,109.14479631]
[1753963682218,0.03,180.66,180.65,109.82479631]
[1753963683221,0.03,180.66,180.65,104.19468397]
[1753963683421,0.03,180.66,180.65,109.14479631]
[1753963684533,0.73,180.66,180.65,109.14479631]
[1753963684702,0.73,180.66,180.65,87.41]
[1753963685540,0.73,180.66,180.65,92.36011234]
[1753963686331,0.73,180.66,180.65,87.41]
[1753963686627,0.03,180.66,180.65,92.36011234]
[1753963688633,0.03,180.66,180.65,4.95011234]
[1753963689434,0.03,180.66,180.64,16.78468397]
[1753963689624,0.03,180.66,180.65,4.95011234]
[1753963690017,0.73,180.66,180.65,4.95011234]
[1753963690834,0.03,180.66,180.65,4.95011234]
[1753963693730,0.03,180.66,180.64,0.68]
[1753963693929,0.03,180.66,180.65,4.95011234]
[1753963694930,0.73,180.66,180.64,21.73479631]
[1753963696418,0.03,180.66,180.64,21.73479631]
[1753963696645,0.03,180.66,180.64,16.78468397]
[1753963696937,0.73,180.66,180.64,21.73479631]
[1753963697316,6.26533236,180.66,180.64,16.78468397]
[1753963698233,0.03,180.66,180.64,21.73479631]
[1753963700448,0.03,180.66,180.64,16.78468397]
[1753963700625,0.03,180.66,180.64,22.41479631]
[1753963701017,0.68,180.65,180.63,87.41]
[1753963701218,0.68,180.65,180.63,92.36011234]
[1753963702830,5.53587245,180.64,180.63,104.19468397]
[1753963703142,6.21587245,180.64,180.63,104.19468397]
[1753963703334,5.53587245,180.64,180.63,104.19468397]
[1753963703827,11.16598479,180.64,180.62,1e-08]
[1753963704027,4.95011234,180.63,180.62,1e-08]
[1753963704223,5.63011234,180.63,180.62,1e-08]
[1753963704723,9.33915862,180.63,180.62,1e-08]
[1753963705125,11.16629126,180.63,180.62,1e-08]
[1753963712858,4.95011234,180.56,180.55,0.2]
[1753963713154,49.12843755,180.56,180.55,0.2]
[1753963713366,49.80843755,180.56,180.55,0.2]
[1753963714445,44.85832521,180.56,180.55,0.2]
[1753963714644,49.80843755,180.56,180.55,0.2]
[1753963716623,5.53832521,180.56,180.55,0.2]
[1753963716841,44.17832521,180.56,180.55,0.92]
[1753963717130,44.17832521,180.56,180.55,0.2]
[1753963717350,38.64,180.56,180.55,0.2]
[1753963717656,10.48810434,180.58,180.55,0.92]
[1753963717954,38.64,180.57,180.55,0.92]
[1753963718153,38.64,180.57,180.55,0.2]
[1753963718651,44.17820539,180.57,180.55,0.2]
[1753963720361,44.17820539,180.57,180.55,0.92]
[1753963720560,38.64,180.57,180.55,0.92]
[1753963720740,38.64,180.57,180.56,0.72]
[1753963721140,38.64,180.57,180.55,0.2]
[1753963721772,38.64,180.57,180.55,0.92]
[1753963722456,38.64,180.57,180.56,0.72]
[1753963723150,38.64,180.57,180.55,0.2]
[1753963723461,38.64,180.57,180.55,0.92]
[1753963723960,5.53775619,180.58,180.55,0.92]
[1753963724266,38.64,180.57,180.55,0.92]
[1753963724455,44.17808384,180.57,180.55,0.2]
[1753963725161,49.80819618,180.57,180.55,0.2]
[1753963725859,44.85808384,180.57,180.55,0.2]
[1753963726153,38.64,180.57,180.55,0.92]
[1753963726662,38.64,180.57,180.56,0.72]
[1753963727161,38.64,180.57,180.56,5.67011234]
[1753963727762,38.64,180.57,180.56,0.72]
[1753963728072,38.64,180.57,180.56,5.67011234]
[1753963729349,5.53746961,180.59,180.56,5.67011234]
[1753963729554,38.64,180.58,180.57,0.72]
[1753963730354,38.64,180.58,180.57,5.67011234]
[1753963731375,38.64,180.58,180.57,22.45479631]
[1753963732749,38.64,180.58,180.57,109.86479631]
[1753963733659,38.64,180.58,180.57,104.91468397]
[1753963733876,38.64,180.58,180.57,87.41]
[1753963734073,44.84771181,180.58,180.57,87.41]
[1753963734261,38.64,180.58,180.57,87.41]
[1753963735478,44.17771181,180.58,180.57,87.41]
[1753963735961,44.17771181,180.58,180.56,4.95011234]
[1753963736955,44.17771181,180.58,180.56,16.78468397]
[1753963738077,44.17771181,180.58,180.56,21.73479631]
[1753963738270,44.17771181,180.58,180.56,16.78468397]
[1753963738653,44.17771181,180.58,180.56,21.73479631]
[1753963739280,44.17771181,180.58,180.56,16.78468397]
[1753963739449,38.64,180.58,180.56,21.73479631]
[1753963739655,38.64,180.58,180.56,22.44479631]
[1753963743963,38.64,180.58,180.56,17.49468397]
[1753963744167,38.64,180.58,180.57,22.44479631]
[1753963744563,38.64,180.58,180.57,21.73479631]
[1753963746561,38.64,180.58,180.57,16.78468397]
[1753963746769,39.31,180.58,180.57,16.78468397]
[1753963748685,38.64,180.58,180.57,16.78468397]
[1753963749476,38.64,180.58,180.57,21.73479631]
[1753963749788,38.64,180.58,180.57,22.44479631]
[1753963750288,38.64,180.58,180.57,16.78468397]
[1753963750980,39.31,180.58,180.55,0.2]
[1753963751186,4.95011234,180.56,180.55,0.2]
[1753963751390,49.12843755,180.56,180.55,0.2]
[1753963751563,49.79843755,180.56,180.55,0.2]
[1753963751889,53.50672422,180.56,180.55,0.2]
[1753963752256,57.62655756,180.56,180.55,0.2]
[1753963752865,53.50672422,180.56,180.55,0.2]
[1753963754086,14.86672422,180.56,180.55,0.2]
[1753963754281,53.50672422,180.56,180.55,0.2]
[1753963754486,57.62591045,180.56,180.55,0.2]
[1753963754684,14.86672422,180.56,180.55,0.2]
[1753963754987,53.50672422,180.56,180.55,0.2]
[1753963755996,47.29839901,180.56,180.55,0.2]
[1753963756798,52.83672422,180.56,180.55,0.2]
[1753963756968,53.50672422,180.56,180.55,0.2]
[1753963758489,53.50687138,180.56,180.55,0.2]
[1753963759337,49.79843755,180.56,180.55,0.2]
[1753963759597,53.50681822,180.56,180.55,0.2]
[1753963759899,48.55670588,180.56,180.55,0.2]
[1753963760086,49.79843755,180.56,180.55,0.2]
[1753963764301,53.50837174,180.56,180.55,0.2]
[1753963764487,14.86837174,180.56,180.55,0.2]
[1753963764801,53.50837174,180.56,180.55,0.2]
[1753963765790,14.86837174,180.56,180.55,0.2]
[1753963765997,52.83837174,180.56,180.55,0.2]
[1753963766304,53.55837174,180.56,180.55,0.2]
[1753963769895,26.0,180.54,180.53,0.06]
[1753963770100,69.59011234,180.54,180.53,0.06]
[1753963770494,78.83708487,180.54,180.53,0.06]
[1753963770704,79.55708487,180.54,180.53,0.06]
[1753963771497,78.83708487,180.54,180.53,0.06]
[1753963771696,73.90697253,180.54,180.53,0.72]
[1753963772189,79.57708487,180.54,180.53,0.06]
[1753963772789,75.86905107,180.54,180.53,0.06]
[1753963773409,75.14905107,180.54,180.53,0.06]
[1753963774808,10.48850044,180.56,180.53,0.72]
[1753963775000,5.5383881,180.56,180.54,0.66]
[1753963775198,38.66,180.55,180.54,0.66]
[1753963775515,38.66,180.55,180.53,5.01011234]
[1753963775811,5.67011234,180.54,180.53,0.06]
[1753963776826,11.20905107,180.54,180.53,0.06]
[1753963778101,10.48905107,180.54,180.53,0.06]
[1753963779019,11.20905107,180.54,180.53,0.06]
[1753963780128,14.9151519,180.54,180.53,0.06]
[1753963780309,14.91556287,180.54,180.53,0.06]
[1753963781096,26.0,180.51,180.48,2.60838651]
[1753963781296,33.71302205,180.54,180.48,2.60838651]
[1753963781297,38.72,180.5,180.49,0.66]
[1753963781497,38.72,180.5,180.48,2.60838651]
[1753963781704,38.72,180.5,180.48,7.55849885]
[1753963782224,38.72,180.5,180.49,0.66]
[1753963782518,44.2601662,180.5,180.49,0.66]
[1753963783304,44.2601662,180.5,180.48,2.60838651]
[1753963784310,44.2601662,180.5,180.48,3.26838651]
[1753963784695,44.2601662,180.5,180.49,0.66]
[1753963785624,38.72,180.5,180.49,0.66]
[1753963786916,38.72,180.5,180.48,2.66838651]
[1753963787121,38.72,180.5,180.48,3.32838651]
[1753963788099,44.26018853,180.5,180.48,3.32838651]
[1753963788303,44.26018853,180.5,180.48,2.66838651]
[1753963788614,44.26018853,180.5,180.48,3.32838651]
[1753963788615,38.72,180.5,180.48,3.32838651]
[1753963788809,38.72,180.5,180.48,2.66838651]
[1753963789008,38.72,180.5,180.49,0.66]
[1753963790622,38.72,180.5,180.48,2.66838651]
[1753963790824,43.67011234,180.5,180.48,2.66838651]
[1753963791005,43.67011234,180.5,180.48,3.32838651]
[1753963791209,38.72,180.5,180.48,3.32838651]
[1753963792125,44.2603032,180.5,180.48,3.32838651]
[1753963792310,44.2603032,180.5,180.48,2.66838651]
[1753963794024,44.2603032,180.5,180.48,3.38838651]
[1753963794614,0.03,180.55,180.49,22.45479631]
[1753963794813,0.03,180.55,180.54,4.95011234]
[1753963795035,0.03,180.55,180.54,21.73479631]
[1753963795227,0.03,180.55,180.54,22.45479631]
[1753963796925,0.03,180.55,180.54,27.99373504]
[1753963797722,0.03,180.55,180.54,32.94384738]
[1753963798725,0.03,180.55,180.54,27.99373504]
[1753963799226,0.03,180.55,180.54,22.45479631]
[1753963799610,0.03,180.55,180.54,27.99373504]
[1753963799806,0.03,180.55,180.54,16.78468397]
[1753963800020,0.71,180.55,180.54,16.78468397]
[1753963800220,5.66011234,180.55,180.5,16.78468397]
[1753963800426,0.68,180.54,180.5,22.45479631]
[1753963800634,4.95011234,180.53,180.5,16.78468397]
[1753963800835,0.68,180.52,180.5,16.78468397]
[1753963801016,5.63011234,180.51,180.5,16.78468397]
[1753963801333,4.95011234,180.52,180.5,16.78468397]
[1753963802838,39.44,180.53,180.5,16.78468397]
[1753963803027,4.95011234,180.52,180.5,16.78468397]
[1753963803334,5.63011234,180.52,180.5,16.78468397]
[1753963803535,38.76,180.53,180.5,17.50468397]
[1753963803722,43.71011234,180.53,180.51,0.72]
[1753963804436,43.71011234,180.53,180.5,16.78468397]
[1753963804829,43.71011234,180.53,180.5,17.50468397]
[1753963805030,0.03,180.55,180.52,21.73479631]
[1753963805228,0.03,180.55,180.54,21.73479631]
[1753963805735,0.03,180.55,180.54,22.45479631]
[1753963812252,0.03,180.55,180.54,115.69373504]
[1753963813644,0.03,180.55,180.54,110.15479631]
[1753963813941,0.03,180.55,180.54,104.48468397]
[1753963814142,0.71,180.55,180.54,109.43479631]
[1753963814350,0.03,180.55,180.54,109.43479631]
[1753963814653,0.03,180.55,180.54,110.15479631]
[1753963815927,0.03,180.55,180.54,116.24762891]
[1753963816243,0.03,180.56,180.55,106.10948397]
[1753963816422,0.03,180.57,180.56,16.78468397]
[1753963816617,0.03,180.57,180.56,136.67862883]
[1753963816843,0.03,180.6,180.56,136.12479631]
[1753963817030,0.03,180.6,180.59,21.73479631]
[1753963817349,0.03,180.6,180.59,109.40479631]
[1753963817541,0.03,180.6,180.59,110.67853682]
[1753963817742,0.03,180.6,180.59,149.65853682]
[1753963817928,0.03,180.6,180.59,110.12479631]
[1753963818125,0.03,180.6,180.59,149.10479631]
[1753963818638,0.03,180.6,180.59,136.12479631]
[1753963819545,0.03,180.6,180.59,135.40479631]
[1753963820220,0.03,180.6,180.59,104.45468397]
[1753963820424,0.71,180.6,180.59,104.45468397]
[1753963820620,0.03,180.6,180.59,104.45468397]
[1753963821051,0.03,180.6,180.59,109.40479631]
[1753963821631,0.03,180.6,180.59,104.45468397]
[1753963823130,0.7,180.6,180.59,104.45468397]
[1753963824223,6.23709856,180.6,180.59,104.45468397]
[1753963824836,11.1872109,180.6,180.59,16.78468397]
[1753963825147,6.23709856,180.6,180.59,16.78468397]
[1753963825530,0.03,180.6,180.59,16.78468397]
[1753963827842,0.03,180.6,180.59,61.34479631]
[1753963828051,0.03,180.6,180.59,66.88220148]
[1753963828251,0.03,180.6,180.59,61.34479631]
[1753963828755,0.03,180.6,180.59,56.39468397]
[1753963828954,0.03,180.6,180.59,61.34479631]
[1753963829755,0.03,180.6,180.59,66.88220148]
[1753963830143,0.03,180.6,180.59,60.63479631]
[1753963830562,0.03,180.6,180.59,16.78468397]
[1753963830563,0.7,180.6,180.59,16.78468397]
[1753963830732,0.03,180.6,180.59,104.45468397]
[1753963832362,0.7,180.6,180.59,104.45468397]
[1753963832566,5.65011234,180.6,180.59,104.45468397]
[1753963833355,0.7,180.6,180.59,104.45468397]
[1753963834556,0.03,180.6,180.59,104.45468397]
[1753963835254,0.7,180.6,180.59,104.45468397]
[1753963835757,5.65011234,180.6,180.59,104.45468397]
[1753963836540,5.65011234,180.6,180.59,16.78468397]
[1753963836736,11.1872109,180.6,180.56,87.67]
[1753963837051,4.95011234,180.57,180.56,104.45468397]
[1753963837246,5.62011234,180.57,180.56,104.45468397]
[1753963838365,4.95011234,180.57,180.56,104.45468397]
[1753963838741,11.15813083,180.57,180.56,104.45468397]
[1753963839647,6.20774685,180.58,180.56,104.45468397]
[1753963839946,4.95011234,180.57,180.56,104.45468397]
[1753963840948,11.15813083,180.57,180.56,104.45468397]
[1753963841157,11.15813083,180.57,180.56,87.67]
[1753963841477,11.15813083,180.57,180.52,16.84468397]
[1753963841666,4.95011234,180.54,180.52,16.84468397]
[1753963841845,4.95011234,180.55,180.52,16.84468397]
[1753963842047,4.95011234,180.55,180.52,17.55468397]
[1753963844950,4.95011234,180.56,180.54,16.78468397]
[1753963845455,5.53809168,180.57,180.54,16.78468397]
[1753963845646,4.95011234,180.58,180.55,0.71]
[1753963846149,4.95011234,180.57,180.55,0.71]
[1753963847172,4.95011234,180.57,180.54,16.78468397]
[1753963847554,10.51727423,180.6,180.56,16.78468397]
[1753963847751,0.03,180.6,180.58,16.78468397]
[1753963848963,0.03,180.6,180.58,17.49468397]
[1753963849164,0.03,180.6,180.59,22.44479631]
[1753963849564,0.03,180.6,180.59,17.49468397]
[1753963850649,0.03,180.6,180.59,22.44479631]
[1753963851762,0.03,180.6,180.59,16.78468397]
[1753963853061,0.03,180.6,180.59,22.42479631]
[1753963853268,0.03,180.6,180.59,27.96220148]
[1753963853872,0.03,180.6,180.59,23.01208914]
[1753963854172,0.03,180.6,180.59,27.96220148]
[1753963857272,0.03,180.6,180.59,29.48020148]
[1753963858760,0.03,180.6,180.59,30.03394199]
[1753963860365,0.03,180.6,180.59,68.81394199]
[1753963861784,0.03,180.6,180.59,27.27220148]
[1753963862083,0.03,180.6,180.59,66.07220148]
[1753963862658,0.03,180.6,180.59,66.76220148]
[1753963862980,0.03,180.6,180.59,67.31594199]
[1753963863175,0.03,180.6,180.59,155.01594199]
[1753963863368,0.03,180.6,180.59,154.46220148]
[1753963864579,0.03,180.6,180.59,16.78468397]
[1753963868084,0.03,180.6,180.59,21.73479631]
[1753963869092,0.03,180.6,180.59,16.78468397]
[1753963869664,5.67011234,180.6,180.59,16.78468397]
[1753963869863,5.67011234,180.6,180.55,0.06]
[1753963870078,4.95011234,180.57,180.55,0.06]
[1753963870282,4.95011234,180.56,180.55,0.06]
[1753963870473,5.64011234,180.56,180.55,0.06]
[1753963870669,0.69,180.56,180.55,0.06]
[1753963870991,5.64011234,180.56,180.55,0.06]
[1753963871372,0.03,180.6,180.56,16.78468397]
[1753963871582,4.98011234,180.6,180.56,21.73479631]
[1753963871872,4.98011234,180.6,180.57,0.06]
[1753963872070,0.69,180.59,180.57,0.06]
[1753963872273,0.03,180.6,180.58,16.78468397]
[1753963872486,0.03,180.6,180.58,17.47468397]
[1753963873381,0.03,180.6,180.58,16.78468397]
[1753963876170,0.03,180.6,180.59,21.73479631]
[1753963877590,0.03,180.6,180.59,27.27220148]
[1753963877763,0.03,180.6,180.59,27.96220148]
[1753963878786,0.03,180.6,180.59,22.42479631]
[1753963879583,0.03,180.6,180.59,27.96220148]
[1753963884694,0.75,180.6,180.59,16.78468397]
[1753963885999,0.03,180.6,180.59,16.78468397]
[1753963887107,0.03,180.6,180.59,27.99220148]
[1753963889111,0.03,180.6,180.59,17.50468397]
[1753963889426,0.03,180.6,180.59,22.45479631]
[1753963889998,0.03,180.6,180.59,16.78468397]
[1753963890804,0.03,180.6,180.59,28.54594199]
[1753963891493,0.03,180.6,180.59,116.24594199]
[1753963891693,0.03,180.6,180.59,115.69220148]
[1753963895392,0.03,180.65,180.62,16.78468397]
[1753963895608,0.03,180.65,180.64,47.73479631]
[1753963895809,0.03,180.65,180.64,135.43479631]
[1753963896114,0.03,180.65,180.64,136.15479631]
[1753963896706,0.03,180.65,180.64,141.69066876]
[1753963896915,0.03,180.65,180.64,143.33226876]
[1753963897096,0.03,180.65,180.64,182.15226876]
[1753963900412,0.03,180.65,180.64,182.13226876]
[1753963900614,0.03,180.65,180.64,94.43226876]
[1753963900808,0.03,180.65,180.64,94.985856]
[1753963903008,0.03,180.65,180.64,97.76080242]
[1753963903433,0.75,180.65,180.64,17.33827121]
[1753963903724,5.70011234,180.65,180.6,38.86]
[1753963903926,4.95011234,180.63,180.6,38.86]
[1753963904102,0.72,180.62,180.61,16.78468397]
[1753963904827,4.95011234,180.63,180.61,16.78468397]
[1753963905027,5.67011234,180.63,180.61,16.78468397]
[1753963905705,0.72,180.62,180.61,16.78468397]
[1753963906327,4.95011234,180.62,180.61,16.78468397]
[1753963906529,4.95011234,180.63,180.61,16.78468397]
[1753963906707,0.72,180.64,180.61,16.78468397]
[1753963907031,5.67011234,180.63,180.61,16.78468397]
[1753963907829,4.95011234,180.64,180.61,22.32144597]
[1753963908213,0.03,180.65,180.63,16.78468397]
[1753963909114,4.98011234,180.65,180.63,16.78468397]
[1753963909441,5.70011234,180.65,180.63,16.78468397]
[1753963909622,5.67011234,180.64,180.63,16.78468397]
[1753963909819,5.67011234,180.64,180.62,16.78468397]
[1753963910015,4.95011234,180.64,180.62,22.32115094]
[1753963911024,0.03,180.65,180.62,22.32115094]
[1753963911321,4.95011234,180.64,180.62,22.32115094]
[1753963912033,5.64011234,180.65,180.62,22.32115094]
[1753963912231,5.64011234,180.65,180.62,22.98115094]
[1753963912430,0.03,180.65,180.62,22.32115094]
[1753963912635,0.03,180.65,180.63,5.61011234]
[1753963912835,0.03,180.65,180.64,21.73479631]
[1753963913133,0.03,180.65,180.64,110.09479631]
[1753963913338,0.03,180.66,180.65,21.73479631]
[1753963913541,0.03,180.66,180.65,149.54835291]
[1753963913734,0.03,180.66,180.65,148.99479631]
[1753963913922,0.03,180.68,180.67,42.78468397]
[1753963914125,0.03,180.68,180.67,174.88829163]
[1753963914441,0.03,180.71,180.7,42.78468397]
[1753963914629,0.03,180.71,180.7,87.18819974]
[1753963914830,0.03,180.71,180.7,87.84819974]
[1753963915034,0.03,180.71,180.7,82.8980874]
[1753963915236,0.03,180.71,180.7,87.84819974]
[1753963915640,0.03,180.71,180.7,88.43212171]
[1753963915843,0.03,180.71,180.7,92.72223405]
[1753963916226,0.03,180.71,180.7,88.43212171]
[1753963916547,0.03,180.71,180.7,93.38223405]
[1753963919537,0.03,180.71,180.7,181.08223405]
[1753963919719,0.03,180.71,180.7,180.52883062]
[1753963920123,0.03,180.71,180.7,175.57871828]
[1753963920437,0.03,180.71,180.7,180.52883062]
[1753963920634,0.03,180.71,180.7,180.48883062]
[1753963921429,0.03,180.71,180.7,174.87871828]
[1753963921624,0.03,180.71,180.7,140.96883062]
[1753963921825,0.03,180.71,180.7,179.82883062]
[1753963923935,0.03,180.71,180.7,174.87871828]
[1753963924129,0.69,180.71,180.7,174.87871828]
[1753963924634,0.03,180.71,180.7,180.48883062]
[1753963924830,0.03,180.71,180.7,179.82883062]
[1753963925534,0.03,180.71,180.7,180.48883062]
[1753963925736,0.03,180.71,180.7,175.53871828]
[1753963926137,0.03,180.71,180.7,180.48883062]
[1753963927033,0.69,180.71,180.7,104.48468397]
[1753963927251,5.64011234,180.71,180.7,16.78468397]
[1753963928227,0.69,180.71,180.7,16.78468397]
[1753963928552,5.64011234,180.71,180.7,16.78468397]
[1753963929426,0.69,180.71,180.7,16.78468397]
[1753963929629,5.64011234,180.71,180.7,16.78468397]
[1753963929832,11.17384041,180.71,180.7,16.78468397]
[1753963930463,0.69,180.71,180.7,16.78468397]
[1753963930634,5.64011234,180.71,180.7,16.78468397]
[1753963933827,11.17384041,180.71,180.7,16.78468397]
[1753963934060,11.17384041,180.71,180.64,16.78468397]
[1753963934234,4.95011234,180.65,180.64,16.78468397]
[1753963934431,5.61011234,180.65,180.61,16.84468397]
[1753963934633,1.596,180.68,180.61,16.84468397]
[1753963934634,4.95011234,180.63,180.61,16.84468397]
[1753963935051,4.95011234,180.63,180.61,22.3812663]
[1753963935233,5.61011234,180.64,180.61,22.3812663]
[1753963937054,1.596,180.68,180.61,87.76]
[1753963937055,4.95011234,180.62,180.61,87.76]
[1753963937245,5.61011234,180.62,180.61,0.06]
[1753963939167,11.14659777,180.62,180.61,0.06]
[1753963944368,10.48659777,180.62,180.61,0.06]
[1753963948075,49.34659777,180.62,180.61,0.06]
[1753963949462,50.02659777,180.62,180.61,0.06]
[1753963957483,50.02659777,180.62,180.59,0.06]
[1753963957658,4.95011234,180.6,180.59,0.06]
[1753963957857,43.77011234,180.6,180.59,0.06]
[1753963958266,44.45011234,180.6,180.59,0.06]
[1753963958576,44.45011234,180.6,180.57,0.06]
[1753963958577,6.079,180.59,180.57,0.06]
[1753963958777,43.85011234,180.58,180.55,0.06]
[1753963958977,4.95011234,180.56,180.55,0.06]
[1753963959187,49.38843755,180.56,180.55,0.06]
[1753963959567,43.85011234,180.56,180.55,0.06]
[1753963960768,49.38843755,180.56,180.55,0.06]
[1753963960981,50.06843755,180.56,180.55,0.06]
[1753963962273,43.85011234,180.56,180.55,0.06]
[1753963963168,38.9,180.56,180.55,0.06]
[1753963963368,49.38843755,180.56,180.55,0.06]
[1753963963570,50.06843755,180.56,180.55,0.06]
[1753963963984,55.01854989,180.56,180.55,0.06]
[1753963967260,55.01854989,180.56,180.53,0.06]
[1753963967482,9.90022468,180.54,180.53,0.06]
[1753963967793,48.76022468,180.54,180.53,0.06]
[1753963968086,49.44022468,180.54,180.53,0.06]
[1753963969092,48.76022468,180.54,180.53,0.06]
[1753963969380,54.29916341,180.54,180.53,0.06]
[1753963970882,54.97916341,180.54,180.53,0.06]
[1753963971271,16.11916341,180.54,180.53,0.06]
[1753963971476,54.97916341,180.54,180.53,0.06]
[1753963972682,54.29916341,180.54,180.53,0.06]
[1753963973191,4.95011234,180.54,180.53,17.53468397]
[1753963973373,43.81011234,180.54,180.53,17.53468397]
[1753963974178,4.95011234,180.54,180.53,17.53468397]
[1753963974373,43.81011234,180.54,180.53,17.53468397]
[1753963976885,43.81011234,180.54,180.53,16.84468397]
[1753963979089,43.81011234,180.54,180.53,0.06]
[1753963979090,54.98916341,180.54,180.53,0.06]
[1753963979685,43.79011234,180.54,180.53,0.75]
[1753963980192,43.79011234,180.54,180.53,0.06]
[1753963980906,43.79011234,180.54,180.53,16.84468397]
[1753963981385,43.79011234,180.54,180.53,17.53468397]
[1753963982287,38.84,180.54,180.53,17.53468397]
[1753963982489,43.79011234,180.54,180.53,17.53468397]
[1753963982792,43.79011234,180.54,180.53,16.84468397]
[1753963983312,43.79011234,180.54,180.53,0.75]
[1753963984183,43.79011234,180.54,180.53,6.28924555]
[1753963985121,43.77011234,180.54,180.53,6.28924555]
[1753963985287,43.77011234,180.54,180.53,0.75]
[1753963986324,43.77011234,180.54,180.53,6.28924555]
[1753963987690,38.82,180.54,180.53,6.28924555]
[1753963988912,43.77011234,180.54,180.53,0.75]
[1753963989493,43.77011234,180.54,180.53,0.06]
[1753963990010,44.46011234,180.54,180.53,0.06]
[1753963990391,43.77011234,180.54,180.53,0.06]
[1753963990811,43.77011234,180.54,180.53,0.75]
[1753963993504,44.46011234,180.54,180.53,0.06]
[1753963994794,49.99905107,180.54,180.53,0.06]
[1753963995910,44.46011234,180.54,180.53,0.06]
[1753964001503,48.17908164,180.54,180.53,0.06]
[1753964004116,53.71802037,180.54,180.53,0.06]
[1753964005114,48.17908164,180.54,180.53,0.06]
[1753964008398,57.85398059,180.54,180.53,0.06]
[1753964010913,52.90386825,180.54,180.53,0.06]
[1753964011115,57.85398059,180.54,180.53,0.06]